fUSD/lending_fUSD_20260630
["ID","MTS","AMOUNT","RATE_DAILY","PERIOD"]
[426743795,1782777059000,-257.01,0.000299,7]
[426743790,1782777059000,-537.92,0.00029899,7]
[426743806,1782777059000,-324.0789761,0.000299,2]
[426743801,1782777059000,-324.0789761,0.000299,2]
[426743803,1782777059000,-324.0789761,0.000299,2]
[426743805,1782777059000,-324.0789761,0.000299,2]
[426743802,1782777059000,-324.0789761,0.000299,2]
[426743807,1782777059000,-324.0789761,0.000299,2]
[426743804,1782777059000,-324.0789761,0.000299,2]
[426743809,1782777059000,-324.0789761,0.000299,2]
[426743808,1782777059000,-324.0789761,0.000299,2]
[426743810,1782777059000,-324.0789761,0.000299,2]
[426743811,1782777059000,-324.0789761,0.000299,2]
[426743813,1782777059000,-324.0789761,0.000299,2]
[426743787,1782777059000,-154.46935744,0.00029768,2]
[426743796,1782777059000,-3300.0,0.000299,10]
[426743786,1782777059000,-250.0,0.0002976,7]
[426743771,1782777059000,-154.0,0.00029602,30]
[426743780,1782777059000,-204.0,0.00029619,30]
[426743816,1782777059000,-324.0789761,0.000299,2]
[426743759,1782777059000,-1518.98815384,0.00029241,2]
[426743763,1782777059000,-150.0,0.00029372,2]
[426743764,1782777059000,-537.23,0.00029384,2]
[426743762,1782777059000,-350.0,0.00029331,2]
[426743768,1782777059000,-537.23,0.00029589,2]
[426743765,1782777059000,-236.22294949,0.00029409,2]
[426743767,1782777059000,-1000.0,0.000295,2]
[426743761,1782777059000,-225.16,0.000293,7]
[426743760,1782777059000,-261.27,0.000293,7]
[426743766,1782777059000,-240.2702774,0.00029409,2]
[426743769,1782777059000,-157.0,0.00029602,30]
[426743783,1782777059000,-152.0,0.00029671,4]
[426743770,1782777059000,-275.0,0.00029602,30]
[426743773,1782777059000,-560.0,0.0002961,30]
[426743774,1782777059000,-201.0,0.0002961,30]
[426743772,1782777059000,-312.0,0.00029602,30]
[426743777,1782777059000,-152.0,0.0002961,30]
[426743778,1782777059000,-171.0,0.0002961,30]
[426743776,1782777059000,-664.0,0.0002961,30]
[426743779,1782777059000,-869.0,0.00029619,30]
[426743781,1782777059000,-232.0,0.00029619,30]
[426743782,1782777059000,-521.16,0.0002962,7]
[426743784,1782777059000,-2274.79609176,0.00029738,2]
[426743788,1782777059000,-482.62,0.00029787,2]
[426743785,1782777059000,-1737.06,0.00029744,7]
[426743775,1782777059000,-252.0,0.0002961,30]
[426743814,1782777059000,-324.0789761,0.000299,2]
[426743869,1782777059000,-151.0,0.0003,7]
[426743815,1782777059000,-324.0789761,0.000299,2]
[426743846,1782777059000,-546.01,0.00029999,120]
[426743849,1782777059000,-546.20897703,0.00029999,120]
[426743854,1782777059000,-2485.5,0.00029999,7]
[426743851,1782777059000,-2485.5,0.00029999,7]
[426743852,1782777059000,-2485.5,0.00029999,7]
[426743855,1782777059000,-2485.5,0.00029999,7]
[426743856,1782777059000,-2485.69014865,0.00029999,7]
[426743859,1782777059000,-591.18693288,0.0003,4]
[426743861,1782777059000,-800.0,0.0003,2]
[426743857,1782777059000,-610456.42942891,0.0003,10]
[426743850,1782777059000,-2485.5,0.00029999,7]
[426743860,1782777059000,-800.0,0.0003,2]
[426743853,1782777059000,-2485.5,0.00029999,7]
[426743858,1782777059000,-10000.0,0.0003,2]
[426743863,1782777059000,-537.23,0.0003,2]
[426743873,1782777059000,-12499.97,0.0003,2]
[426743862,1782777059000,-800.0,0.0003,2]
[426743864,1782777059000,-12500.0,0.0003,2]
[426743866,1782777059000,-22500.0,0.0003,2]
[426743870,1782777059000,-151.0,0.0003,7]
[426743865,1782777059000,-12500.0,0.0003,2]
[426743871,1782777059000,-151.0,0.0003,7]
[426743868,1782777059000,-7592.83558297,0.0003,2]
[426743874,1782777059000,-10000.0,0.0003,2]
[426743872,1782777059000,-22499.98,0.0003,2]
[426743842,1782777059000,-630.51065149,0.00029999,120]
[426743843,1782777059000,-546.01,0.00029999,120]
[426743867,1782777059000,-505.0,0.0003,15]
[426743844,1782777059000,-546.01,0.00029999,120]
[426743845,1782777059000,-546.01,0.00029999,120]
[426743817,1782777059000,-246.41580062,0.00029951,2]
[426743812,1782777059000,-324.0789761,0.000299,2]
[426743820,1782777059000,-151.0,0.00029997,7]
[426743822,1782777059000,-557.35,0.00029999,120]
[426743821,1782777059000,-557.35,0.00029999,120]
[426743823,1782777059000,-557.35,0.00029999,120]
[426743828,1782777059000,-820.01,0.00029999,120]
[426743830,1782777059000,-820.01,0.00029999,120]
[426743824,1782777059000,-557.35,0.00029999,120]
[426743834,1782777059000,-820.01233145,0.00029999,120]
[426743833,1782777059000,-820.01,0.00029999,120]
[426743835,1782777059000,-210.08,0.00029999,14]
[426743818,1782777059000,-250.63776783,0.00029951,2]
[426743826,1782777059000,-557.35,0.00029999,120]
[426743829,1782777059000,-820.01,0.00029999,120]
[426743839,1782777059000,-630.48,0.00029999,120]
[426743848,1782777059000,-546.01,0.00029999,120]
[426743838,1782777059000,-630.48,0.00029999,120]
[426743840,1782777059000,-630.48,0.00029999,120]
[426743836,1782777059000,-630.48,0.00029999,120]
[426743837,1782777059000,-630.48,0.00029999,120]
[426743831,1782777059000,-820.01,0.00029999,120]
[426743827,1782777059000,-557.51027751,0.00029999,120]
[426743825,1782777059000,-557.35,0.00029999,120]
[426743832,1782777059000,-820.01,0.00029999,120]
[426743847,1782777059000,-546.01,0.00029999,120]
[426743841,1782777059000,-630.48,0.00029999,120]
[426743910,1782777060000,-500.0,0.00030125,2]
[426743909,1782777060000,-500.0,0.00030125,2]
[426743907,1782777060000,-500.0,0.00030125,2]
[426743904,1782777060000,-500.0,0.00030125,2]
[426743903,1782777060000,-500.0,0.00030125,2]
[426743902,1782777060000,-500.0,0.00030125,2]
[426743901,1782777060000,-500.0,0.00030125,2]
[426743906,1782777060000,-500.0,0.00030125,2]
[426743908,1782777060000,-500.0,0.00030125,2]
[426743914,1782777060000,-500.0,0.00030125,2]
[426743911,1782777060000,-500.0,0.00030125,2]
[426743922,1782777060000,-500.0,0.00030125,2]
[426743912,1782777060000,-500.0,0.00030125,2]
[426743915,1782777060000,-500.0,0.00030125,2]
[426743899,1782777060000,-500.0,0.00030125,2]
[426743913,1782777060000,-500.0,0.00030125,2]
[426743917,1782777060000,-500.0,0.00030125,2]
[426743920,1782777060000,-500.0,0.00030125,2]
[426743916,1782777060000,-500.0,0.00030125,2]
[426743921,1782777060000,-500.0,0.00030125,2]
[426743905,1782777060000,-500.0,0.00030125,2]
[426743900,1782777060000,-500.0,0.00030125,2]
[426743892,1782777060000,-151.0,0.00030125,30]
[426743889,1782777060000,-612.64316548,0.00030122,3]
[426743919,1782777060000,-500.0,0.00030125,2]
[426743877,1782777060000,-192.710337,0.0003,7]
[426743876,1782777060000,-192.710337,0.0003,7]
[426743883,1782777060000,-319.0,0.00030063,30]
[426743886,1782777060000,-151.0,0.000301,7]
[426743878,1782777060000,-192.710337,0.0003,7]
[426743881,1782777060000,-935.817238,0.0003,7]
[426743882,1782777060000,-350.0,0.00030022,2]
[426743880,1782777060000,-935.817238,0.0003,7]
[426743879,1782777060000,-192.710337,0.0003,7]
[426743885,1782777060000,-53723.33475304,0.000301,7]
[426743875,1782777060000,-234.0,0.0003,2]
[426743888,1782777060000,-156.520971,0.000301,7]
[426743898,1782777060000,-500.0,0.00030125,2]
[426743891,1782777060000,-151.0,0.00030125,30]
[426743894,1782777060000,-218.23034,0.00030125,30]
[426743890,1782777060000,-22500.0,0.00030125,2]
[426743896,1782777060000,-151.0,0.00030125,7]
[426743887,1782777060000,-151.0,0.000301,7]
[426743895,1782777060000,-151.0,0.00030125,7]
[426743893,1782777060000,-151.0,0.00030125,30]
[426743897,1782777060000,-151.0,0.00030125,7]
[426743884,1782777060000,-151.0,0.00030097,7]
[426743918,1782777060000,-500.0,0.00030125,2]
[426743925,1782777060000,-500.0,0.00030125,2]
[426743953,1782777060000,-500.0,0.00030125,2]
[426743948,1782777060000,-500.0,0.00030125,2]
[426743954,1782777060000,-500.0,0.00030125,2]
[426743952,1782777060000,-500.0,0.00030125,2]
[426743956,1782777060000,-500.0,0.00030125,2]
[426743957,1782777060000,-500.0,0.00030125,2]
[426743951,1782777060000,-500.0,0.00030125,2]
[426743955,1782777060000,-500.0,0.00030125,2]
[426743958,1782777060000,-500.0,0.00030125,2]
[426743960,1782777060000,-500.0,0.00030125,2]
[426743970,1782777060000,-500.0,0.00030125,2]
[426743963,1782777060000,-500.0,0.00030125,2]
[426743962,1782777060000,-500.0,0.00030125,2]
[426743959,1782777060000,-500.0,0.00030125,2]
[426743965,1782777060000,-500.0,0.00030125,2]
[426743964,1782777060000,-500.0,0.00030125,2]
[426743967,1782777060000,-500.0,0.00030125,2]
[426743969,1782777060000,-500.0,0.00030125,2]
[426743966,1782777060000,-500.0,0.00030125,2]
[426743968,1782777060000,-500.0,0.00030125,2]
[426743923,1782777060000,-500.0,0.00030125,2]
[426743947,1782777060000,-500.0,0.00030125,2]
[426743949,1782777060000,-500.0,0.00030125,2]
[426743961,1782777060000,-500.0,0.00030125,2]
[426743944,1782777060000,-500.0,0.00030125,2]
[426743928,1782777060000,-500.0,0.00030125,2]
[426743950,1782777060000,-500.0,0.00030125,2]
[426743924,1782777060000,-500.0,0.00030125,2]
[426743931,1782777060000,-500.0,0.00030125,2]
[426743934,1782777060000,-500.0,0.00030125,2]
[426743933,1782777060000,-500.0,0.00030125,2]
[426743930,1782777060000,-500.0,0.00030125,2]
[426743932,1782777060000,-500.0,0.00030125,2]
[426743926,1782777060000,-500.0,0.00030125,2]
[426743929,1782777060000,-500.0,0.00030125,2]
[426743927,1782777060000,-500.0,0.00030125,2]
[426743938,1782777060000,-500.0,0.00030125,2]
[426743946,1782777060000,-500.0,0.00030125,2]
[426743935,1782777060000,-500.0,0.00030125,2]
[426743945,1782777060000,-500.0,0.00030125,2]
[426743937,1782777060000,-500.0,0.00030125,2]
[426743941,1782777060000,-500.0,0.00030125,2]
[426743942,1782777060000,-500.0,0.00030125,2]
[426743943,1782777060000,-500.0,0.00030125,2]
[426743939,1782777060000,-500.0,0.00030125,2]
[426743940,1782777060000,-500.0,0.00030125,2]
[426743936,1782777060000,-500.0,0.00030125,2]
[426744009,1782777061000,-500.0,0.00030136,2]
[426744005,1782777061000,-500.0,0.00030136,2]
[426744016,1782777061000,-500.0,0.00030136,2]
[426744010,1782777061000,-500.0,0.00030136,2]
[426744013,1782777061000,-500.0,0.00030136,2]
[426744008,1782777061000,-500.0,0.00030136,2]
[426744002,1782777061000,-500.0,0.00030136,2]
[426744007,1782777061000,-500.0,0.00030136,2]
[426744004,1782777061000,-500.0,0.00030136,2]
[426744000,1782777061000,-500.0,0.00030136,2]
[426744011,1782777061000,-500.0,0.00030136,2]
[426744006,1782777061000,-500.0,0.00030136,2]
[426744014,1782777061000,-500.0,0.00030136,2]
[426744024,1782777061000,-883.146791,0.00030136,7]
[426744015,1782777061000,-500.0,0.00030136,2]
[426744017,1782777061000,-500.0,0.00030136,2]
[426744020,1782777061000,-151.0,0.00030136,7]
[426744019,1782777061000,-526.60827864,0.00030136,2]
[426744023,1782777061000,-883.146791,0.00030136,7]
[426744027,1782777061000,-298.64558948,0.00030137,2]
[426744026,1782777061000,-501.36237752,0.00030137,2]
[426744018,1782777061000,-500.0,0.00030136,2]
[426744022,1782777061000,-883.146791,0.00030136,7]
[426744025,1782777061000,-150.0,0.00030137,2]
[426744021,1782777061000,-883.146791,0.00030136,7]
[426744001,1782777061000,-500.0,0.00030136,2]
[426744012,1782777061000,-500.0,0.00030136,2]
[426743998,1782777061000,-500.0,0.00030136,2]
[426743976,1782777061000,-500.0,0.00030125,2]
[426743999,1782777061000,-500.0,0.00030136,2]
[426744029,1782777061000,-1000.0,0.00030137,120]
[426743973,1782777061000,-500.0,0.00030125,2]
[426743971,1782777061000,-500.0,0.00030125,2]
[426743975,1782777061000,-500.0,0.00030125,2]
[426743977,1782777061000,-500.0,0.00030125,2]
[426743978,1782777061000,-500.0,0.00030125,2]
[426743972,1782777061000,-500.0,0.00030125,2]
[426743979,1782777061000,-500.0,0.00030125,2]
[426743981,1782777061000,-500.0,0.00030125,2]
[426743983,1782777061000,-628.352876,0.00030125,2]
[426743982,1782777061000,-500.0,0.00030125,2]
[426743980,1782777061000,-500.0,0.00030125,2]
[426744003,1782777061000,-500.0,0.00030136,2]
[426743985,1782777061000,-1099.10308476,0.0003013,2]
[426743986,1782777061000,-14182.49937388,0.0003013,2]
[426743987,1782777061000,-649.06981493,0.0003013,2]
[426743988,1782777061000,-206.4088942,0.0003013,2]
[426743991,1782777061000,-303.77103101,0.0003013,2]
[426743992,1782777061000,-1926.37308037,0.0003013,2]
[426743990,1782777061000,-171.87762964,0.0003013,20]
[426743989,1782777061000,-482.27184879,0.0003013,2]
[426743994,1782777061000,-674.04098562,0.0003013,2]
[426743993,1782777061000,-30152.294812,0.0003013,2]
[426743995,1782777061000,-500.0,0.00030136,2]
[426743996,1782777061000,-500.0,0.00030136,2]
[426743997,1782777061000,-500.0,0.00030136,2]
[426743984,1782777061000,-151.0,0.00030127,7]
[426744039,1782777061000,-12499.99,0.0003025,2]
[426743974,1782777061000,-500.0,0.00030125,2]
[426744037,1782777061000,-537.23,0.00030205,2]
[426744063,1782777061000,-157.0,0.00030602,30]
[426744059,1782777061000,-2000.0,0.0003052,7]
[426744060,1782777061000,-482.63,0.00030596,2]
[426744066,1782777061000,-312.0,0.00030602,30]
[426744068,1782777061000,-201.0,0.0003061,30]
[426744067,1782777061000,-560.0,0.0003061,30]
[426744077,1782777061000,-573.9,0.00030635,2]
[426744078,1782777061000,-644.22,0.00030664,2]
[426744069,1782777061000,-252.0,0.0003061,30]
[426744073,1782777061000,-537.22,0.00030616,2]
[426744071,1782777061000,-152.0,0.0003061,30]
[426744070,1782777061000,-664.0,0.0003061,30]
[426744061,1782777061000,-951.96,0.000306,120]
[426744072,1782777061000,-171.0,0.0003061,30]
[426744075,1782777061000,-204.0,0.00030619,30]
[426744074,1782777061000,-869.0,0.00030619,30]
[426744080,1782777061000,-3558.76,0.00030667,2]
[426744079,1782777061000,-151.0,0.00030664,2]
[426744082,1782777061000,-350.0,0.00030712,2]
[426744081,1782777061000,-257.01,0.000307,7]
[426744083,1782777061000,-154.46935744,0.00030728,2]
[426744087,1782777061000,-1253.53673655,0.00030798,2]
[426744086,1782777061000,-1439.62638846,0.00030779,2]
[426744085,1782777061000,-1443.17767262,0.00030779,2]
[426744088,1782777061000,-1271.21066315,0.00030798,2]
[426744028,1782777061000,-542.22,0.00030137,30]
[426744076,1782777061000,-232.0,0.00030619,30]
[426744062,1782777061000,-865.41676728,0.000306,2]
[426744084,1782777061000,-542.22,0.00030746,30]
[426744057,1782777061000,-800.0,0.000305,2]
[426744058,1782777061000,-800.0,0.000305,2]
[426744034,1782777061000,-261.27,0.000302,7]
[426744032,1782777061000,-212.0,0.0003016,2]
[426744030,1782777061000,-412.0,0.0003016,2]
[426744038,1782777061000,-10016.36,0.0003025,2]
[426744035,1782777061000,-225.16,0.000302,7]
[426744033,1782777061000,-15871.90662225,0.000302,2]
[426744036,1782777061000,-151.0,0.000302,7]
[426744040,1782777061000,-22500.0,0.0003025,2]
[426744049,1782777061000,-283.0,0.00030452,2]
[426744041,1782777061000,-151.0,0.0003025,7]
[426744044,1782777061000,-3460.67,0.00030375,2]
[426744045,1782777061000,-161.45,0.00030411,120]
[426744031,1782777061000,-154.0,0.0003016,2]
[426744043,1782777061000,-10000.0,0.00030333,2]
[426744047,1782777061000,-537.23,0.00030411,2]
[426744064,1782777061000,-275.0,0.00030602,30]
[426744056,1782777061000,-800.0,0.000305,2]
[426744053,1782777061000,-216.0,0.00030452,2]
[426744055,1782777061000,-900.06183153,0.00030496,2]
[426744054,1782777061000,-350.0,0.00030461,2]
[426744065,1782777061000,-154.0,0.00030602,30]
[426744051,1782777061000,-1362.0,0.00030452,2]
[426744050,1782777061000,-1278.0,0.00030452,2]
[426744046,1782777061000,-279.98224209,0.00030411,60]
[426744052,1782777061000,-6087.0,0.00030452,2]
[426744042,1782777061000,-350.0,0.00030332,2]
[426744048,1782777061000,-3565.0,0.00030452,2]
[426744128,1782777062000,-151.0,0.00031485,2]
[426744129,1782777062000,-185.29,0.00031485,2]
[426744125,1782777062000,-155.027491,0.000314,7]
[426744126,1782777062000,-537.22,0.00031438,2]
[426744124,1782777062000,-151.0,0.000314,7]
[426744121,1782777062000,-542.22,0.00031355,30]
[426744120,1782777062000,-342.547923,0.000313,4]
[426744131,1782777062000,-573.48,0.00031485,2]
[426744115,1782777062000,-505.18157816,0.00031152,4]
[426744119,1782777062000,-3635.0,0.000313,2]
[426744123,1782777062000,-151.0,0.000314,7]
[426744136,1782777062000,-194.0,0.000315,10]
[426744135,1782777062000,-5049.86853363,0.000315,2]
[426744132,1782777062000,-185.3,0.00031485,2]
[426744133,1782777062000,-201.69235652,0.000315,2]
[426744130,1782777062000,-573.9,0.00031485,2]
[426744134,1782777062000,-150.0,0.000315,2]
[426744137,1782777062000,-800.0,0.000315,2]
[426744139,1782777062000,-800.0,0.000315,2]
[426744143,1782777062000,-655.99000779,0.000315,2]
[426744138,1782777062000,-800.0,0.000315,2]
[426744144,1782777062000,-175.17389624,0.000315,2]
[426744117,1782777062000,-537.22,0.00031233,2]
[426744142,1782777062000,-655.99000779,0.000315,2]
[426744127,1782777062000,-573.67,0.00031485,2]
[426744116,1782777062000,-261.27,0.000312,7]
[426744103,1782777062000,-151.0,0.00031,7]
[426744118,1782777062000,-900.0618315,0.0003124,2]
[426744141,1782777062000,-655.9900078,0.000315,2]
[426744090,1782777062000,-537.22,0.00030822,2]
[426744089,1782777062000,-1367.81387531,0.00030818,2]
[426744093,1782777062000,-150.0,0.00030841,2]
[426744092,1782777062000,-1645.2776185,0.0003084,2]
[426744096,1782777062000,-800.0,0.00031,2]
[426744098,1782777062000,-800.0,0.00031,2]
[426744097,1782777062000,-800.0,0.00031,2]
[426744094,1782777062000,-350.0,0.0003089,2]
[426744095,1782777062000,-13000.0,0.00031,2]
[426744099,1782777062000,-185.963335,0.00031,7]
[426744100,1782777062000,-185.963335,0.00031,7]
[426744101,1782777062000,-185.963335,0.00031,7]
[426744102,1782777062000,-185.963335,0.00031,7]
[426744113,1782777062000,-225.16,0.000311,7]
[426744110,1782777062000,-390.280005,0.00031,7]
[426744104,1782777062000,-390.280005,0.00031,7]
[426744107,1782777062000,-4252.868314,0.00031,7]
[426744108,1782777062000,-390.280005,0.00031,7]
[426744112,1782777062000,-537.22,0.00031027,2]
[426744106,1782777062000,-390.280005,0.00031,7]
[426744111,1782777062000,-4252.868314,0.00031,7]
[426744105,1782777062000,-4252.868314,0.00031,7]
[426744109,1782777062000,-4252.868314,0.00031,7]
[426744114,1782777062000,-2210.27188032,0.00031152,4]
[426744122,1782777062000,-151.0,0.000314,7]
[426744145,1782777062000,-2210.27188032,0.00031506,4]
[426744091,1782777062000,-505.0,0.00030833,16]
[426744146,1782777062000,-505.18157816,0.00031506,4]
[426744175,1782777062000,-150.0,0.0003171,30]
[426744176,1782777062000,-150.0,0.0003171,30]
[426744179,1782777062000,-150.0,0.0003171,30]
[426744178,1782777062000,-150.0,0.0003171,30]
[426744180,1782777062000,-150.0,0.0003171,30]
[426744182,1782777062000,-161.244745,0.0003171,7]
[426744181,1782777062000,-151.0,0.0003171,7]
[426744183,1782777062000,-150.0,0.00031769,30]
[426744192,1782777062000,-150.0,0.00031948,30]
[426744184,1782777062000,-150.0,0.00031829,30]
[426744187,1782777062000,-150.0,0.00031877,30]
[426744191,1782777062000,-150.0,0.00031944,30]
[426744190,1782777062000,-150.0,0.00031944,30]
[426744186,1782777062000,-505.18157816,0.0003186,30]
[426744185,1782777062000,-2210.27188032,0.0003186,30]
[426744188,1782777062000,-150.0,0.00031889,30]
[426744189,1782777062000,-39660.86561822,0.000319,7]
[426744193,1782777062000,-542.22,0.00031963,30]
[426744199,1782777062000,-800.0,0.00032,5]
[426744198,1782777062000,-14621.65795589,0.00032,2]
[426744195,1782777062000,-6751.2393,0.00032,2]
[426744200,1782777062000,-800.0,0.00032,5]
[426744196,1782777062000,-5000.0,0.00032,2]
[426744194,1782777062000,-900.0618315,0.00031984,2]
[426744140,1782777062000,-257.01,0.000315,7]
[426744173,1782777062000,-150.0,0.0003171,30]
[426744177,1782777062000,-150.0,0.0003171,30]
[426744197,1782777062000,-1771.56621233,0.00032,2]
[426744171,1782777062000,-150.0,0.0003171,30]
[426744174,1782777062000,-150.0,0.0003171,30]
[426744158,1782777062000,-201.0,0.0003161,30]
[426744147,1782777062000,-573.9,0.00031541,2]
[426744150,1782777062000,-573.9,0.00031541,2]
[426744149,1782777062000,-397.36,0.00031541,2]
[426744151,1782777062000,-151.0,0.00031541,2]
[426744156,1782777062000,-312.0,0.00031602,30]
[426744155,1782777062000,-155.0,0.00031602,30]
[426744152,1782777062000,-951.96,0.00031583,120]
[426744153,1782777062000,-157.0,0.00031602,30]
[426744157,1782777062000,-560.0,0.0003161,30]
[426744154,1782777062000,-275.0,0.00031602,30]
[426744148,1782777062000,-185.28,0.00031541,2]
[426744168,1782777062000,-505.0,0.00031667,16]
[426744164,1782777062000,-204.0,0.00031619,30]
[426744160,1782777062000,-664.0,0.0003161,30]
[426744166,1782777062000,-159.44,0.0003162,2]
[426744163,1782777062000,-869.0,0.00031619,30]
[426744167,1782777062000,-204.75,0.00031644,3]
[426744162,1782777062000,-171.0,0.0003161,30]
[426744165,1782777062000,-232.0,0.00031619,30]
[426744169,1782777062000,-236.96,0.0003168,60]
[426744161,1782777062000,-152.0,0.0003161,30]
[426744170,1782777062000,-154.46935744,0.00031688,2]
[426744172,1782777062000,-150.0,0.0003171,30]
[426744159,1782777062000,-252.0,0.0003161,30]
[426744232,1782777063000,-150.0,0.00032366,30]
[426744234,1782777063000,-150.0,0.00032383,2]
[426744238,1782777063000,-150.0,0.00032414,30]
[426744230,1782777063000,-227.12409933,0.00032333,2]
[426744231,1782777063000,-150.0,0.0003235,30]
[426744241,1782777063000,-150.0,0.00032426,30]
[426744229,1782777063000,-6294.41763374,0.0003233,120]
[426744240,1782777063000,-2000.0,0.00032416,7]
[426744233,1782777063000,-150.0,0.00032381,30]
[426744239,1782777063000,-150.0,0.00032414,30]
[426744243,1782777063000,-5000.0,0.00032435,2]
[426744236,1782777063000,-257.01,0.000324,7]
[426744237,1782777063000,-150.0,0.00032414,30]
[426744244,1782777063000,-5000.0,0.00032435,2]
[426744242,1782777063000,-5000.0,0.00032435,2]
[426744253,1782777063000,-2210.27188032,0.00032568,30]
[426744254,1782777063000,-505.18157816,0.00032568,30]
[426744248,1782777063000,-800.0,0.000325,5]
[426744246,1782777063000,-1000.0,0.000325,2]
[426744252,1782777063000,-150.0,0.00032548,30]
[426744245,1782777063000,-150.0,0.00032486,30]
[426744228,1782777063000,-150.0,0.00032307,30]
[426744235,1782777063000,-20043.41464798,0.000324,2]
[426744222,1782777063000,-23088.22,0.00032232,7]
[426744213,1782777063000,-150.0,0.00032179,30]
[426744225,1782777063000,-171932.27160954,0.0003226,2]
[426744249,1782777063000,-800.0,0.000325,5]
[426744202,1782777063000,-225.16,0.00032,7]
[426744201,1782777063000,-800.0,0.00032,5]
[426744204,1782777063000,-151.0,0.00032,7]
[426744203,1782777063000,-250.0,0.00032,7]
[426744214,1782777063000,-150.0,0.00032179,30]
[426744206,1782777063000,-150.0,0.0003203,30]
[426744207,1782777063000,-150.0,0.00032045,30]
[426744205,1782777063000,-150.0,0.00032008,30]
[426744212,1782777063000,-521.16,0.00032159,14]
[426744211,1782777063000,-150.0,0.00032128,30]
[426744227,1782777063000,-914.53051847,0.000323,2]
[426744209,1782777063000,-150.0,0.00032068,30]
[426744210,1782777063000,-6895.33199901,0.00032112,5]
[426744215,1782777063000,-150.0,0.00032187,30]
[426744217,1782777063000,-150.0,0.00032213,30]
[426744218,1782777063000,-2210.27188032,0.00032214,30]
[426744219,1782777063000,-505.18157816,0.00032214,30]
[426744224,1782777063000,-150.0,0.00032247,30]
[426744221,1782777063000,-1372.08,0.00032232,7]
[426744216,1782777063000,-261.27,0.000322,7]
[426744226,1782777063000,-482.58,0.0003229,2]
[426744223,1782777063000,-4757.95,0.00032232,7]
[426744220,1782777063000,-275.47,0.00032232,7]
[426744208,1782777063000,-150.0,0.00032062,30]
[426744247,1782777063000,-800.0,0.000325,5]
[426744251,1782777063000,-150.0,0.00032546,30]
[426744266,1782777063000,-252.0,0.0003261,30]
[426744286,1782777063000,-46893.30007721,0.00032848,5]
[426744278,1782777063000,-150.0,0.0003267,30]
[426744285,1782777063000,-150.0,0.00032844,30]
[426744281,1782777063000,-900.0618315,0.00032728,2]
[426744294,1782777063000,-150.0,0.00032884,30]
[426744298,1782777063000,-150.0,0.00032904,30]
[426744295,1782777063000,-150.0,0.00032884,30]
[426744288,1782777063000,-500.0,0.00032876,14]
[426744297,1782777063000,-600.0,0.000329,12]
[426744290,1782777063000,-417.0192,0.00032877,7]
[426744291,1782777063000,-417.0192,0.00032877,7]
[426744299,1782777063000,-2210.27188032,0.00032922,30]
[426744292,1782777063000,-417.0192,0.00032877,7]
[426744293,1782777063000,-151.0,0.00032877,7]